bitfinex/quotes_BTCUSD_20250218
["timestamp","ask_amount","ask_price","bid_price","bid_amount"]
[1739852693606,0.04253009,96302.0,96301.0,0.15297395]
[1739852693812,0.03283468,96302.0,96301.0,0.15297395]
[1739852694189,0.00180374,96302.0,96301.0,0.15297395]
[1739852694523,0.00525402,96302.0,96301.0,0.15297395]
[1739852700126,0.00620404,96302.0,96301.0,0.15297395]
[1739852708694,0.16196404,96302.0,96301.0,0.15297395]
[1739852710956,0.207672,96306.0,96301.0,0.15297395]
[1739852711157,0.00502969,96302.0,96301.0,0.0504703]
[1739852711357,0.15709254,96302.0,96301.0,0.15297395]
[1739852711653,0.16108822,96302.0,96301.0,0.15297395]
[1739852711859,0.16108822,96302.0,96301.0,0.14997395]
[1739852712059,0.16108822,96302.0,96301.0,0.15097395]
[1739852713738,0.16108822,96302.0,96301.0,0.14997395]
[1739852713938,0.16108822,96302.0,96301.0,0.15297395]
[1739852721695,0.00532822,96302.0,96301.0,0.15297395]
[1739852721904,0.00532822,96302.0,96301.0,0.38843495]
[1739852722331,0.0003406,96304.0,96301.0,0.26343495]
[1739852722534,0.0003406,96304.0,96303.0,0.0763]
[1739852722777,0.0003406,96304.0,96303.0,0.22540365]
[1739852723149,0.0003406,96304.0,96303.0,0.38116165]
[1739852723361,0.0003406,96304.0,96303.0,0.22540365]
[1739852724313,0.0003406,96304.0,96303.0,0.22740365]
[1739852724998,0.0003406,96304.0,96303.0,0.22940365]
[1739852725219,0.0003406,96304.0,96303.0,0.22740365]
[1739852725555,0.0003406,96304.0,96303.0,0.23040365]
[1739852726116,0.00165362,96304.0,96303.0,0.23040365]
[1739852726267,0.00165362,96304.0,96303.0,0.38616165]
[1739852726941,0.0003406,96304.0,96303.0,0.38616165]
[1739852727100,0.0003406,96304.0,96303.0,0.23040365]
[1739852727305,0.0003406,96304.0,96303.0,0.22840365]
[1739852727963,0.0003406,96304.0,96303.0,0.23140365]
[1739852728151,0.0003406,96304.0,96303.0,0.22840365]
[1739852728648,0.0003406,96304.0,96303.0,0.23240365]
[1739852728859,0.0003406,96304.0,96303.0,0.38516165]
[1739852729182,0.0003406,96304.0,96303.0,0.38416165]
[1739852729770,0.0003406,96304.0,96303.0,0.38816165]
[1739852729975,0.0003406,96304.0,96303.0,0.71666165]
[1739852731116,0.0003406,96304.0,96303.0,0.70966165]
[1739852731351,0.0003406,96304.0,96303.0,0.71666165]
[1739852731567,0.0003406,96304.0,96303.0,0.71366165]
[1739852732226,0.0003406,96304.0,96303.0,0.71766165]
[1739852732655,0.0003406,96304.0,96303.0,0.70966165]
[1739852733067,0.0003406,96304.0,96303.0,0.71666165]
[1739852733267,0.0003406,96304.0,96303.0,0.73966165]
[1739852733650,0.0003406,96304.0,96303.0,0.75966165]
[1739852734187,0.0003406,96304.0,96303.0,0.73666165]
[1739852734398,0.0003406,96304.0,96303.0,0.75666165]
[1739852734607,0.0003406,96304.0,96303.0,0.75766165]
[1739852734826,0.0003406,96304.0,96303.0,0.77808175]
[1739852735022,0.0003406,96304.0,96303.0,0.78408175]
[1739852736201,0.0003406,96304.0,96303.0,0.76366165]
[1739852739484,0.07801623,96330.0,96318.0,0.0478]
[1739852739720,0.09135321,96330.0,96319.0,0.31014565]
[1739852739926,0.00622462,96329.0,96319.0,0.31014565]
[1739852740919,0.00622462,96329.0,96321.0,0.155727]
[1739852741121,0.00622462,96329.0,96322.0,0.10250365]
[1739852741325,0.15572,96327.0,96322.0,0.10250365]
[1739852742530,0.16194162,96329.0,96322.0,0.10250365]
[1739852742944,0.00622462,96329.0,96322.0,0.10250365]
[1739852743158,0.155718,96328.0,96322.0,0.10250365]
[1739852743492,0.00136706,96327.0,96322.0,0.10250365]
[1739852744840,0.02089361,96330.0,96322.0,0.10250365]
[1739852745014,0.00518637,96326.0,96322.0,0.10250365]
[1739852745193,0.155716,96329.0,96322.0,0.10250365]
[1739852745393,0.00518406,96325.0,96322.0,0.10250365]
[1739852745726,0.00518175,96324.0,96322.0,0.10250365]
[1739852746227,0.155718,96328.0,96322.0,0.10250365]
[1739852746435,0.00517944,96323.0,96322.0,0.10250365]
[1739852746647,0.155718,96328.0,96322.0,0.10250365]
[1739852746843,0.0041628,96323.0,96322.0,0.10250365]
[1739852747052,0.155718,96328.0,96322.0,0.10250365]
[1739852747254,0.02089361,96330.0,96322.0,0.10250365]
[1739852747482,0.00518868,96327.0,96322.0,0.10250365]
[1739852747684,0.00102529,96327.0,96322.0,0.10250365]
[1739852748178,0.155718,96328.0,96322.0,0.10250365]
[1739852748333,0.00518637,96326.0,96322.0,0.10250365]
[1739852750195,0.00551036,96326.0,96322.0,0.10250365]
[1739852751335,0.00551036,96326.0,96323.0,0.155726]
[1739852751559,0.155716,96329.0,96324.0,0.10250365]
[1739852751697,0.0054015,96325.0,96324.0,0.10250365]
[1739852751890,0.16905198,96330.0,96324.0,0.10250365]
[1739852752210,0.155716,96329.0,96324.0,0.10250365]
[1739852752620,0.16087976,96328.0,96324.0,0.10250365]
[1739852753657,0.00516176,96328.0,96324.0,0.10250365]
[1739852755790,0.155719,96327.0,96324.0,0.10250365]
[1739852755997,0.24678445,96334.0,96324.0,0.10250365]
[1739852756208,0.15,96345.0,96324.0,0.10250365]
[1739852756418,0.07801623,96340.0,96331.0,0.0498]
[1739852756635,0.1557,96339.0,96332.0,0.10250365]
[1739852756901,0.07801623,96340.0,96332.0,0.10250365]
[1739852757107,0.01697469,96336.0,96332.0,0.25821465]
[1739852757276,0.0003406,96336.0,96332.0,0.25821465]
[1739852757488,0.0003406,96336.0,96332.0,0.10250365]
[1739852758434,0.01674619,96336.0,96332.0,0.10250365]
[1739852758643,0.23062752,96340.0,96332.0,0.10250365]
[1739852758854,0.155703,96338.0,96332.0,0.10250365]
[1739852759285,0.17193473,96338.0,96332.0,0.10250365]
[1739852759975,0.01623173,96338.0,96332.0,0.10250365]
[1739852760182,0.155703,96337.0,96332.0,0.10250365]
[1739852760377,0.02302752,96340.0,96332.0,0.10250365]
[1739852760583,0.0166374,96338.0,96332.0,0.10250365]
[1739852760883,0.30603246,96342.0,96332.0,0.10250365]
[1739852761181,0.155703,96338.0,96332.0,0.10250365]
[1739852761809,0.01628637,96338.0,96332.0,0.10250365]
[1739852762015,0.51362646,96342.0,96332.0,0.10250365]
[1739852762217,0.155704,96337.0,96332.0,0.10250365]
[1739852762422,0.155708,96334.0,96332.0,0.10250365]
[1739852762671,0.155706,96335.0,96332.0,0.10250365]
[1739852763087,0.155704,96337.0,96332.0,0.10250365]
[1739852763326,0.2076,96339.0,96332.0,0.10250365]
[1739852763503,0.155705,96336.0,96332.0,0.10250365]
[1739852764487,0.155709,96333.0,96332.0,0.10250365]
[1739852764691,0.155707,96335.0,96332.0,0.10250365]
[1739852764868,0.155709,96334.0,96332.0,0.10250365]
[1739852765469,0.01617197,96338.0,96332.0,0.10250365]
[1739852765883,0.155698,96340.0,96332.0,0.10250365]
[1739852766506,0.17226404,96340.0,96332.0,0.10267385]
[1739852766949,0.17226404,96340.0,96333.0,0.08]
[1739852766950,0.01690644,96340.0,96333.0,0.08]
[1739852767169,0.0003404,96340.0,96338.0,0.155701]
[1739852767373,0.0003404,96340.0,96339.0,0.10250365]
[1739852783939,0.0003404,96340.0,96339.0,0.38300365]
[1739852784121,0.0003404,96340.0,96339.0,0.22730365]
[1739852786068,0.0003404,96340.0,96339.0,0.38300365]
[1739852787232,0.0003404,96340.0,96339.0,0.22730365]
[1739852787506,0.0003404,96340.0,96339.0,0.38300365]
[1739852787753,0.0003404,96340.0,96339.0,0.22730365]
[1739852791688,0.0003404,96340.0,96339.0,0.22747385]
[1739852791935,0.0003404,96340.0,96339.0,0.38317385]
[1739852796295,0.0003404,96340.0,96339.0,0.22747385]
[1739852797985,0.0003404,96340.0,96339.0,0.38317385]
[1739852798130,0.0003404,96340.0,96339.0,0.22747385]
[1739852798332,0.0003404,96340.0,96339.0,0.38317385]
[1739852808907,0.155691,96345.0,96339.0,0.22747385]
[1739852809702,0.17653745,96345.0,96339.0,0.22747385]
[1739852809908,0.02084645,96345.0,96339.0,0.22747385]
[1739852810117,0.155689,96346.0,96339.0,0.22747385]
[1739852811924,0.15569,96345.0,96339.0,0.22747385]
[1739852812728,0.07801623,96350.0,96339.0,0.22747385]
[1739852812881,0.0202898,96345.0,96339.0,0.22747385]
[1739852813086,0.155689,96346.0,96339.0,0.22747385]
[1739852813410,0.07801623,96350.0,96339.0,0.22747385]
[1739852813610,0.20758,96348.0,96339.0,0.22747385]
[1739852814216,0.155691,96345.0,96339.0,0.22747385]
[1739852814779,0.155692,96344.0,96339.0,0.22747385]
[1739852816900,0.22869004,96345.0,96339.0,0.22747385]
[1739852817309,0.207587,96345.0,96339.0,0.22747385]
[1739852817515,0.155694,96343.0,96339.0,0.22747385]
[1739852818397,0.02049259,96345.0,96339.0,0.22747385]
[1739852818624,0.155696,96342.0,96339.0,0.22747385]
[1739852818830,0.207589,96344.0,96339.0,0.22747385]
[1739852819003,0.155695,96342.0,96339.0,0.22747385]
[1739852820045,0.207589,96344.0,96339.0,0.22747385]
[1739852820378,0.155696,96341.0,96339.0,0.22747385]
[1739852821013,0.155696,96342.0,96339.0,0.22747385]
[1739852821915,0.155697,96341.0,96339.0,0.22747385]
[1739852823301,0.155698,96340.0,96339.0,0.22747385]
[1739852823498,0.02056273,96345.0,96339.0,0.22747385]
[1739852823762,0.155697,96341.0,96339.0,0.22747385]
[1739852824738,0.207593,96343.0,96339.0,0.22747385]
[1739852824954,0.155698,96340.0,96339.0,0.22747385]
[1739852825957,0.207592,96343.0,96339.0,0.22747385]
[1739852826488,0.155695,96342.0,96339.0,0.22747385]
[1739852826637,0.155696,96342.0,96339.0,0.22747385]
[1739852826845,0.155697,96341.0,96339.0,0.22747385]
[1739852827662,0.155698,96340.0,96339.0,0.22747385]
[1739852829374,0.207592,96343.0,96339.0,0.22747385]
[1739852830136,0.155696,96341.0,96339.0,0.22747385]
[1739852832356,0.155698,96340.0,96339.0,0.0001702]
[1739852832531,0.18757868,96340.0,96339.0,0.0001702]
[1739852832708,0.155698,96340.0,96339.0,0.0001702]
[1739852832913,1.870647,96340.0,96339.0,0.0001702]
[1739852833115,1.897733,96340.0,96339.0,0.0001702]
[1739852833521,1.559068,96340.0,96339.0,0.0001702]
[1739852833717,1.250945,96340.0,96339.0,0.0001702]
[1739852835817,0.495751,96340.0,96339.0,0.0001702]
[1739852836022,2.177199,96340.0,96339.0,0.0001702]
[1739852836280,0.155698,96340.0,96339.0,0.0001702]
[1739852836439,1.835081,96340.0,96339.0,0.0001702]
[1739852836781,2.477271,96340.0,96339.0,0.0001702]
[1739852836981,2.449315,96340.0,96339.0,0.0001702]
[1739852837305,2.340436,96340.0,96339.0,0.0001702]
[1739852837518,2.215656,96340.0,96339.0,0.0001702]
[1739852838243,2.034639,96340.0,96339.0,0.0001702]
[1739852840726,2.021556,96340.0,96339.0,0.0001702]
[1739852841943,1.137263,96340.0,96339.0,0.0001702]
[1739852842153,0.493872,96340.0,96339.0,0.0001702]
[1739852842381,0.155698,96340.0,96339.0,0.0001702]
[1739852842794,0.155695,96342.0,96339.0,0.10267385]
[1739852842965,0.155697,96341.0,96340.0,0.10250365]
[1739852844887,0.155697,96341.0,96340.0,0.14950365]
[1739852845285,0.0003404,96346.0,96341.0,0.155696]
[1739852845485,0.0003404,96346.0,96342.0,0.10250365]
[1739852846119,0.207574,96351.0,96342.0,0.10250365]
[1739852846510,0.155682,96350.0,96342.0,0.10250365]
[1739852847021,0.155686,96348.0,96342.0,0.10250365]
[1739852847450,0.155683,96350.0,96342.0,0.10250365]
[1739852848573,0.07801623,96352.0,96342.0,0.10250365]
[1739852848772,0.07801623,96352.0,96345.0,0.207587]
[1739852848973,0.07801623,96352.0,96347.0,0.155686]
[1739852849201,0.07801623,96352.0,96348.0,0.10250365]
[1739852849412,0.155674,96356.0,96348.0,0.10250365]
[1739852849614,0.155671,96357.0,96348.0,0.25818865]
[1739852849815,0.17666122,96356.0,96348.0,0.25818865]
[1739852850026,0.155675,96355.0,96348.0,0.10250365]
[1739852850403,0.155676,96354.0,96348.0,0.10250365]
[1739852850820,0.155677,96353.0,96348.0,0.10250365]
[1739852851544,0.02048539,96356.0,96348.0,0.10250365]
[1739852851967,0.0003402,96359.0,96348.0,0.10250365]
[1739852852174,0.155682,96351.0,96348.0,0.10250365]
[1739852852958,0.0003404,96353.0,96348.0,0.10250365]
[1739852853165,0.155679,96352.0,96348.0,0.10350365]
[1739852854119,0.15568,96351.0,96348.0,0.10350365]
[1739852854320,0.155682,96350.0,96348.0,0.10350365]
[1739852854755,0.155682,96350.0,96348.0,0.10250365]
[1739852857014,0.15568,96352.0,96348.0,0.10250365]
[1739852857178,0.2079104,96353.0,96348.0,0.10250365]
[1739852857395,0.15568,96351.0,96348.0,0.10250365]
[1739852859403,0.155682,96350.0,96348.0,0.10250365]
[1739852860218,0.15568,96352.0,96348.0,0.10250365]
[1739852860415,0.0003404,96353.0,96348.0,0.10250365]
[1739852860617,0.155682,96351.0,96348.0,0.10250365]
[1739852862566,0.0003404,96353.0,96348.0,0.10250365]
[1739852862702,0.0003404,96353.0,96349.0,0.155683]
[1739852862911,0.0003404,96353.0,96350.0,0.10250365]
[1739852863561,0.1560184,96353.0,96350.0,0.10250365]
[1739852864376,0.0003404,96353.0,96350.0,0.10250365]
[1739852869525,0.0003404,96353.0,96351.0,0.0459]
[1739852869767,0.0003404,96353.0,96352.0,0.10250365]
[1739852873258,0.1560174,96353.0,96352.0,0.10250365]
[1739852883007,0.207565,96355.0,96352.0,0.10250365]
[1739852883208,0.155677,96353.0,96352.0,0.10250365]
[1739852885558,0.15574987,96353.0,96352.0,0.10250365]
[1739852889787,0.15574987,96353.0,96352.0,0.10267385]
[1739852892739,0.16547794,96353.0,96352.0,0.10267385]
[1739852894427,0.15574987,96353.0,96352.0,0.10267385]
[1739852900571,0.15574987,96353.0,96352.0,0.0001702]
[1739852900971,2.78814187,96353.0,96352.0,0.0001702]
[1739852901621,2.93814187,96353.0,96352.0,0.0001702]
[1739852903790,0.30574987,96353.0,96352.0,0.0001702]
[1739852903998,5.09168887,96353.0,96352.0,0.0001702]
[1739852904634,4.64569887,96353.0,96352.0,0.0001702]
[1739852904843,4.63913138,96353.0,96352.0,0.0001702]
[1739852906114,4.64690209,96353.0,96352.0,0.0001702]
[1739852907049,4.66316361,96353.0,96352.0,0.0001702]
[1739852908109,4.69504261,96353.0,96352.0,0.0001702]
[1739852908742,4.70475337,96353.0,96352.0,0.0001702]
[1739852909166,4.69698266,96353.0,96352.0,0.0001702]
[1739852910456,4.80449696,96353.0,96352.0,0.0001702]
[1739852910664,4.83754366,96353.0,96352.0,0.0001702]
[1739852911273,5.01192936,96353.0,96352.0,0.0001702]
[1739852911891,5.0332816,96353.0,96352.0,0.0001702]
[1739852912601,5.01702008,96353.0,96352.0,0.0011702]
[1739852913018,2.59200408,96353.0,96352.0,0.0001702]
[1739852913188,0.70306808,96353.0,96352.0,0.0001702]
[1739852913396,6.63310908,96353.0,96352.0,0.0001702]
[1739852913960,6.29699308,96353.0,96352.0,0.0001702]
[1739852914376,6.29999308,96353.0,96352.0,0.0011702]
[1739852914518,6.30199308,96353.0,96352.0,0.0021702]
[1739852914725,6.23488338,96353.0,96352.0,0.0011702]
[1739852914922,5.66548838,96353.0,96352.0,0.0021702]
[1739852915149,4.52570638,96353.0,96352.0,0.0021702]
[1739852915773,4.52370638,96353.0,96352.0,0.0011702]
[1739852916100,4.53070638,96353.0,96352.0,0.0021702]
[1739852916591,4.50427687,96353.0,96352.0,0.0011702]
[1739852916955,4.54032357,96353.0,96352.0,0.0021702]
[1739852917152,4.62469987,96353.0,96352.0,0.0021702]
[1739852919341,4.55658638,96353.0,96352.0,0.0021702]
[1739852920075,4.39886615,96353.0,96352.0,0.0021702]
[1739852920883,4.55454315,96353.0,96352.0,0.0021702]
[1739852921512,4.52149645,96353.0,96352.0,0.0021702]
[1739852921722,0.155684,96349.0,96348.0,0.0001702]
[1739852922041,7.2189467,96349.0,96348.0,0.0001702]
[1739852922164,7.3689467,96349.0,96348.0,0.0001702]
[1739852922568,6.8722047,96349.0,96348.0,0.0001702]
[1739852922787,6.8157977,96349.0,96348.0,0.0001702]
[1739852923102,6.80440435,96349.0,96348.0,0.0001702]
[1739852923482,3.92681036,96349.0,96348.0,0.0001702]
[1739852923686,0.305698,96340.0,96328.0,0.0483]
[1739852923891,7.1986497,96340.0,96328.0,0.0483]
[1739852924095,7.261767,96340.0,96328.0,0.0483]
[1739852924297,7.32706135,96340.0,96328.0,0.0483]
[1739852924909,7.34452894,96340.0,96328.0,0.0483]
[1739852925308,7.39898924,96340.0,96328.0,0.0483]
[1739852925744,7.39898924,96340.0,96319.0,0.0814]
[1739852925951,7.39898924,96340.0,96318.0,0.046]
[1739852926361,7.41955833,96340.0,96318.0,0.046]
[1739852926610,7.42255833,96340.0,96318.0,0.046]
[1739852927026,7.43882306,96340.0,96318.0,0.046]
[1739852927436,7.43182306,96340.0,96318.0,0.046]
[1739852927656,0.505709,96333.0,96318.0,0.046]
[1739852927869,7.6486717,96333.0,96318.0,0.046]
[1739852928538,6.3634617,96333.0,96318.0,0.046]
[1739852929334,6.413922,96333.0,96318.0,0.046]
[1739852929541,6.419922,96333.0,96332.0,0.0011702]
[1739852929753,6.52242565,96333.0,96332.0,0.0011702]
[1739852929977,6.52842565,96333.0,96332.0,0.0011702]
[1739852930149,6.54589324,96333.0,96332.0,0.0011702]
[1739852930773,6.50284195,96333.0,96332.0,0.0001702]
[1739852930974,6.51384195,96333.0,96332.0,0.0011702]
[1739852931501,6.50684195,96333.0,96332.0,0.0001702]
[1739852931653,6.25479595,96333.0,96332.0,0.0001702]
[1739852931857,5.82477736,96333.0,96332.0,0.0011702]
[1739852932281,5.81877736,96333.0,96332.0,0.0001702]
[1739852932820,5.82177736,96333.0,96332.0,0.0011702]
[1739852933254,5.82777736,96333.0,96332.0,0.0011702]
[1739852933474,5.82177736,96333.0,96332.0,0.0011702]
[1739852933618,5.82077736,96333.0,96332.0,0.0001702]
[1739852933821,5.69690136,96333.0,96332.0,0.0001702]
[1739852934051,5.49822236,96333.0,96332.0,0.0011702]
[1739852934254,5.42797857,96333.0,96332.0,0.0011702]
[1739852934430,5.35274657,96333.0,96332.0,0.0001702]
[1739852934832,5.35974657,96333.0,96332.0,0.0011702]
[1739852935420,5.31969987,96333.0,96332.0,0.0001702]
[1739852935621,5.3359648,96333.0,96332.0,0.0001702]
[1739852935877,4.78244259,96333.0,96332.0,0.0011702]
[1739852936029,4.32538859,96333.0,96332.0,0.0011702]
[1739852936236,4.33138859,96333.0,96332.0,0.0021702]
[1739852937299,4.02888494,96333.0,96332.0,0.0021702]
[1739852937508,1.58220694,96333.0,96332.0,0.0504702]
[1739852937713,0.59735894,96333.0,96332.0,0.0504702]
[1739852937923,0.59035894,96333.0,96332.0,0.0494702]
[1739852938100,0.41893094,96333.0,96332.0,0.0494702]
[1739852938304,0.20438294,96333.0,96332.0,0.0494702]
[1739852938854,0.19738294,96333.0,96332.0,0.0494702]
[1739852939056,0.19138294,96333.0,96332.0,0.0484702]
[1739852939243,0.32197393,96333.0,96332.0,0.0494702]
[1739852939453,0.32797393,96333.0,96332.0,0.0494702]
[1739852939681,0.32197393,96333.0,96332.0,0.0484702]
[1739852939832,0.32797393,96333.0,96332.0,0.0494702]
[1739852940426,0.33497393,96333.0,96332.0,0.0504702]
[1739852944196,0.34467278,96333.0,96332.0,0.0504702]
[1739852945257,0.35243183,96333.0,96332.0,0.0504702]
[1739852945888,0.3361669,96333.0,96332.0,0.0504702]
[1739852946428,0.32646805,96333.0,96332.0,0.0504702]
[1739852946640,0.318709,96333.0,96332.0,0.0504702]
[1739852949452,1.80170965,96333.0,96332.0,0.0504702]
[1739852950013,3.89863565,96333.0,96332.0,0.0504702]
[1739852951007,3.89163565,96333.0,96332.0,0.0494702]
[1739852951206,3.89263565,96333.0,96332.0,0.0494702]
[1739852951971,3.86948465,96333.0,96332.0,0.0494702]
[1739852953033,3.87548465,96333.0,96332.0,0.0504702]
[1739852955529,3.90736365,96333.0,96332.0,0.0021702]
[1739852955779,3.92362812,96333.0,96332.0,0.0021702]
[1739852956339,3.93138856,96333.0,96332.0,0.0021702]
[1739852957858,3.9410879,96333.0,96332.0,0.0021702]
[1739852959689,3.93332746,96333.0,96332.0,0.0021702]
[1739852961638,3.96637416,96333.0,96332.0,0.0021702]
[1739852962650,3.95010969,96333.0,96332.0,0.0021702]
[1739852962855,3.95786983,96333.0,96332.0,0.0021702]
[1739852965756,3.97413545,96333.0,96332.0,0.0021702]
[1739852966086,3.99353761,96333.0,96332.0,0.0021702]
[1739852967322,3.96049091,96333.0,96332.0,0.0021702]
[1739852969444,3.95079157,96333.0,96332.0,0.0021702]
[1739852969902,0.305726,96323.0,96322.0,0.0485703]
[1739852970087,4.828924,96323.0,96322.0,0.0485703]
[1739852970294,5.200134,96323.0,96322.0,0.0485703]
[1739852970491,0.305726,96323.0,96322.0,0.0485703]
[1739852970722,5.11423793,96323.0,96322.0,0.0485703]
[1739852970927,2.69233158,96323.0,96322.0,0.0485703]
[1739852971143,5.00446874,96323.0,96322.0,0.04864317]
[1739852971343,5.03634774,96323.0,96322.0,0.04864317]
[1739852971682,5.05380835,96323.0,96322.0,0.04864317]
[1739852971893,5.05380835,96323.0,96322.0,0.00024317]
[1739852972300,5.66507635,96323.0,96322.0,0.00024317]
[1739852972500,7.46290626,96323.0,96322.0,0.00024317]
[1739852972822,7.38259526,96323.0,96322.0,0.00024317]
[1739852973024,6.62131026,96323.0,96322.0,0.00024317]
[1739852973238,6.45741826,96323.0,96322.0,0.00024317]
[1739852974163,6.36388726,96323.0,96322.0,0.00024317]
[1739852974791,6.23676426,96323.0,96322.0,0.00024317]
[1739852974995,6.26981096,96323.0,96322.0,0.00024317]
[1739852975432,6.26981096,96323.0,96322.0,1.7e-07]
[1739852975713,0.51701576,96323.0,96322.0,1.7e-07]
[1739852975959,0.53328261,96323.0,96322.0,1.7e-07]
[1739852976373,0.63578626,96323.0,96322.0,1.7e-07]
[1739852976591,0.15,96318.0,96313.0,0.04576017]
[1739852976772,0.15,96304.0,96296.0,0.0809]
[1739852977011,0.15,96304.0,96303.0,0.00060915]
[1739852977012,5.274167,96304.0,96303.0,0.00060915]
[1739852977242,4.649334,96304.0,96303.0,0.00060915]
[1739852977456,4.30245208,96304.0,96303.0,0.00060915]
[1739852977657,4.34718973,96304.0,96303.0,0.00060915]
[1739852978033,4.3568902,96304.0,96303.0,0.00060915]
[1739852978248,4.40856184,96304.0,96303.0,0.00060915]
[1739852978606,4.41632198,96304.0,96303.0,0.00060915]
[1739852979447,4.41932198,96304.0,96303.0,0.00060915]
[1739852979812,4.42232198,96304.0,96303.0,0.00060915]
[1739852979992,4.41932198,96304.0,96303.0,0.00060915]
[1739852980347,4.42232198,96304.0,96303.0,0.00060915]
[1739852980803,4.40292218,96304.0,96303.0,0.00060915]
[1739852981160,4.39992218,96304.0,96303.0,0.00060915]
[1739852981568,4.40292218,96304.0,96303.0,0.00060915]
[1739852981779,3.16553318,96304.0,96303.0,0.00060915]
[1739852982004,3.16253318,96304.0,96303.0,0.00060915]
[1739852982218,3.16553318,96304.0,96303.0,0.00060915]
[1739852982610,3.0607521,96304.0,96303.0,0.00060915]
[1739852982811,3.0577521,96304.0,96303.0,0.00060915]
[1739852983018,3.0637521,96304.0,96303.0,0.00060915]
[1739852983432,3.0577521,96304.0,96303.0,0.00060915]
[1739852983629,3.0597521,96304.0,96303.0,0.00060915]
[1739852983824,3.0617521,96304.0,96303.0,0.00060915]
[1739852985072,3.0597521,96304.0,96303.0,0.00060915]
[1739852985575,3.08114239,96304.0,96303.0,0.00060915]
[1739852986312,3.07914239,96304.0,96303.0,0.00060915]
[1739852986739,3.08114239,96304.0,96303.0,0.00060915]
[1739852986969,3.09341101,96304.0,96303.0,0.00060915]
[1739852987366,3.09541101,96304.0,96303.0,0.00060915]
[1739852987811,3.08765087,96304.0,96303.0,0.00060915]
[1739852988221,3.08965087,96304.0,96303.0,0.00060915]
[1739852988433,3.09740861,96304.0,96303.0,0.00060915]
[1739852988639,3.09540861,96304.0,96303.0,0.00060915]
[1739852988773,3.25116461,96304.0,96303.0,0.00060915]
[1739852988969,3.25316461,96304.0,96303.0,0.00060915]
[1739852989393,3.28504361,96304.0,96303.0,0.00060915]
[1739852990460,1.13773861,96304.0,96303.0,0.00060915]
[1739852990670,0.52952761,96304.0,96303.0,0.00060915]
[1739852990870,6.24696961,96304.0,96303.0,0.00060915]
[1739852991083,6.26249,96304.0,96302.0,0.02399672]
[1739852991322,5.16761165,96303.0,96302.0,0.02399672]
[1739852991535,5.04645765,96303.0,96302.0,0.02399672]
[1739852992122,4.88601365,96303.0,96302.0,0.02399672]
[1739852992487,4.63920665,96303.0,96302.0,0.02399672]
[1739852992687,4.64696439,96303.0,96302.0,0.02399672]
[1739852992950,4.66635468,96303.0,96302.0,0.02399672]
[1739852993157,4.50340515,96303.0,96302.0,0.02399672]
[1739852993362,4.50540515,96303.0,96302.0,0.02399672]
[1739852993576,4.34706803,96303.0,96302.0,0.02399672]
[1739852993786,4.0978741,96303.0,96302.0,0.02399672]
[1739852993990,4.10243215,96303.0,96302.0,0.02399672]
[1739852994395,3.9999285,96303.0,96302.0,0.02399672]
[1739852994595,3.93624221,96303.0,96302.0,0.02399672]
[1739852994771,3.95251102,96303.0,96302.0,0.02399672]
[1739852994979,3.95451102,96303.0,96302.0,0.02399672]
[1739852998267,0.15576,96302.0,96292.0,0.0452]
[1739852998471,5.11781865,96302.0,96292.0,0.0452]
[1739852999556,5.26881865,96302.0,96292.0,0.0452]
[1739853000320,5.27657639,96302.0,96292.0,0.0452]
[1739853000925,5.27757639,96302.0,96292.0,0.0452]
[1739853001184,2.38057339,96302.0,96292.0,0.0452]
[1739853001515,5.27757639,96302.0,96292.0,0.0452]
[1739853003489,3.87090139,96302.0,96292.0,0.0452]
[1739853003665,3.88061067,96302.0,96292.0,0.0452]
[1739853006398,3.90004046,96302.0,96292.0,0.0452]
[1739853006609,3.79753681,96302.0,96292.0,0.0452]
[1739853006992,3.81380616,96302.0,96292.0,0.0452]
[1739853007799,3.79437637,96302.0,96292.0,0.0452]
[1739853011621,0.89737337,96302.0,96292.0,0.0452]
[1739853011823,3.79437637,96302.0,96292.0,0.0452]
[1739853012065,3.87015457,96302.0,96292.0,0.0452]
[1739853012357,3.27637637,96302.0,96301.0,0.1272703]
[1739853012562,0.17522702,96302.0,96301.0,0.1272703]
[1739853012767,0.01946702,96302.0,96301.0,0.1272703]
[1739853013334,0.01946702,96302.0,96301.0,0.22977395]
[1739853013550,0.01946702,96302.0,96301.0,0.26832775]
[1739853014832,0.01846702,96302.0,96301.0,0.26832775]
[1739853015049,0.01846702,96302.0,96301.0,0.26932775]
[1739853015228,0.16878321,96308.0,96302.0,0.1313]
[1739853015433,0.574868,96307.0,96303.0,0.10250365]
[1739853015637,0.155754,96306.0,96305.0,0.1235]
[1739853015839,0.207662,96311.0,96305.0,0.10250365]
[1739853016042,0.0003406,96313.0,96308.0,0.0752]
[1739853016244,0.155747,96310.0,96309.0,0.0483]
[1739853016448,0.155747,96310.0,96309.0,0.14001746]
[1739853016656,0.155747,96310.0,96309.0,0.1225]
[1739853017669,0.155747,96310.0,96309.0,0.1215]
[1739853018449,0.157747,96310.0,96309.0,0.1215]
[1739853019050,0.159747,96310.0,96309.0,0.1215]
[1739853021332,0.157747,96310.0,96309.0,0.1215]
[1739853021699,0.001,96310.0,96309.0,0.1215]
[1739853021945,0.001,96310.0,96309.0,0.16610536]
[1739853022147,0.002,96310.0,96309.0,0.26860901]
[1739853023566,0.002,96310.0,96309.0,0.26877931]
[1739853023783,0.0023406,96310.0,96309.0,0.26877931]
[1739853024756,0.0013406,96310.0,96309.0,0.22417395]
[1739853025089,0.207651,96315.0,96309.0,0.22517395]
[1739853025290,0.15574,96314.0,96310.0,0.10250365]
[1739853025452,0.01626733,96318.0,96310.0,0.10250365]
[1739853025649,0.15574,96315.0,96310.0,0.16166385]
[1739853025852,0.15574,96315.0,96311.0,0.0772]
[1739853026051,0.207649,96316.0,96311.0,0.17970365]
[1739853026917,0.155741,96314.0,96311.0,0.17970365]
[1739853027780,0.155741,96314.0,96311.0,0.18070365]
[1739853028182,0.155741,96314.0,96311.0,0.18270365]
[1739853028359,0.155741,96314.0,96311.0,0.18170365]
[1739853028561,0.155741,96314.0,96311.0,0.18370365]
[1739853028966,0.23532277,96316.0,96311.0,0.18370365]
[1739853029197,0.15574,96314.0,96311.0,0.18370365]
[1739853029979,0.15574,96314.0,96311.0,0.18170365]
[1739853030192,0.15574,96314.0,96311.0,0.18270365]
[1739853030610,0.15574,96314.0,96311.0,0.18070365]
[1739853030826,0.15574,96314.0,96311.0,0.17970365]
[1739853031045,0.23532277,96316.0,96311.0,0.18270365]
[1739853031259,0.02767377,96316.0,96311.0,0.18170365]
[1739853031468,0.18341077,96316.0,96312.0,0.0435844]
[1739853031783,0.155737,96316.0,96312.0,0.0435844]
[1739853032014,0.02827512,96319.0,96312.0,0.14608805]
[1739853032243,0.02827512,96319.0,96314.0,0.08]
[1739853032448,0.28565223,96322.0,96314.0,0.08]
[1739853032652,0.23374423,96322.0,96314.0,0.08]